bitfinex-derivatives/quotes_ETHF0:USTF0_20251006
["timestamp","ask_amount","ask_price","bid_price","bid_amount"]
[1759764963186,0.1296,4678.5,4677.6,4.16944]
[1759764963187,0.7023,4679.0,4678.9,0.38455]
[1759764963376,3.7811,4679.0,4678.9,0.38455]
[1759764963583,4.1137,4679.0,4678.9,0.38455]
[1759764963982,4.11552777,4679.0,4678.9,0.38455]
[1759764968894,0.90772777,4679.0,4678.9,0.38455]
[1759764969487,4.11552777,4679.0,4678.9,0.38455]
[1759764970684,4.11552777,4679.0,4678.8,0.38455]
[1759764970883,0.7763,4678.9,4678.8,0.38455]
[1759764971483,0.9913,4678.9,4678.8,0.61765]
[1759764971890,0.7763,4678.9,4678.8,0.61765]
[1759764973288,0.7763,4678.9,4678.8,0.38455]
[1759764973895,3.9841,4678.9,4678.8,0.38455]
[1759764974792,0.7763,4678.9,4678.8,0.61765]
[1759764974990,0.7763,4678.9,4678.8,0.38455]
[1759764976199,0.7763,4678.9,4678.8,0.61765]
[1759764977694,0.7763,4678.9,4678.8,0.85075]
[1759764978999,0.7742,4678.8,4678.7,0.38456]
[1759764980596,0.7742,4678.8,4678.7,0.59516]
[1759764984798,1.21275498,4678.8,4678.7,0.59516]
[1759764988999,1.21275498,4678.8,4678.7,0.38456]
[1759764989197,4.42055498,4678.8,4678.7,0.38456]
[1759764989392,1.21275498,4678.8,4678.7,0.38456]
[1759764991301,4.42055498,4678.8,4678.7,0.38456]
[1759764992504,1.21275498,4678.8,4678.7,0.38456]
[1759764995513,1.21275498,4678.8,4678.7,0.59516]
[1759764996009,1.21275498,4678.8,4678.7,0.79896]
[1759764996815,1.21275498,4678.8,4678.7,0.59516]
[1759764997810,1.21275498,4678.8,4678.7,0.38456]
[1759764999406,1.21275498,4678.8,4678.7,0.58836]
[1759765000003,0.4485,4678.4,4678.0,1.13674054]
[1759765000204,0.5497,4678.1,4678.0,0.38462]
[1759765000410,1.20735498,4678.1,4678.0,0.38462]
[1759765001209,1.20735498,4678.1,4678.0,0.79222]
[1759765001401,1.20735498,4678.1,4678.0,1.00722]
[1759765001605,0.7688,4678.1,4678.0,0.59962]
[1759765001810,1.22610292,4678.1,4678.0,0.59962]
[1759765002011,1.22610292,4678.1,4678.0,41.39962]
[1759765002211,0.7688,4678.1,4678.0,41.39962]
[1759765002616,0.7688,4678.1,4678.0,41.18462]
[1759765002815,0.7688,4678.1,4678.0,41.39962]
[1759765003116,0.7688,4678.1,4678.0,41.18462]
[1759765003309,0.7688,4678.1,4678.0,41.39962]
[1759765003916,0.2294,4678.5,4678.4,1.13519]
[1759765004116,0.4485,4678.5,4678.4,1.13519]
[1759765004711,0.57992777,4679.0,4678.9,0.81475]
[1759765004914,1.03708734,4679.0,4678.9,0.81475]
[1759765005919,1.35738734,4679.0,4678.9,0.81475]
[1759765006115,1.35738734,4679.0,4678.9,0.59715]
[1759765008816,1.57238734,4679.0,4678.9,0.59715]
[1759765009920,1.35738734,4679.0,4678.9,0.59715]
[1759765011524,1.00248734,4679.0,4678.9,0.82185]
[1759765011719,1.34238734,4679.0,4678.9,0.82185]
[1759765011920,1.34238734,4679.0,4678.9,0.59715]
[1759765012321,1.34238734,4679.0,4678.9,0.38455]
[1759765013220,1.00248734,4679.0,4678.9,1.13555]
[1759765013418,0.68218734,4679.0,4678.9,1.13555]
[1759765013722,1.34008734,4679.0,4678.9,1.13555]
[1759765013919,0.88292777,4679.0,4678.9,41.61775]
[1759765014118,0.88292777,4679.0,4678.9,41.93555]
[1759765014623,0.00182777,4679.0,4678.9,41.93555]
[1759765015016,0.00182777,4679.0,4678.9,42.15055]
[1759765016426,0.5412,4680.1,4680.0,0.81766]
[1759765016718,0.7512,4679.4,4679.3,0.59951]
[1759765016921,1.2079044,4679.4,4679.3,0.38451]
[1759765017628,1.21003338,4679.4,4679.3,0.38451]
[1759765018928,0.8811,4679.0,4678.9,0.38455]
[1759765019121,1.3378044,4679.0,4678.9,0.38455]
[1759765019425,0.8811,4679.0,4678.9,0.38455]
[1759765019726,1.34351626,4679.0,4678.9,0.38455]
[1759765020229,1.34351626,4679.0,4678.9,0.59305]
[1759765020421,0.8811,4679.0,4678.9,0.59305]
[1759765021327,1.34543785,4679.0,4678.9,0.38455]
[1759765022030,0.8811,4679.0,4678.9,0.59305]
[1759765022516,0.00212898,4679.4,4679.3,1.13551]
[1759765022723,1.0075771,4679.4,4679.3,4.34331]
[1759765023029,1.0075771,4679.4,4679.3,45.14331]
[1759765023421,0.6895771,4679.4,4679.3,45.14331]
[1759765023621,0.22532898,4679.4,4679.3,45.14331]
[1759765023925,0.54332898,4679.4,4679.3,45.14331]
[1759765024227,0.54332898,4679.4,4679.3,41.61771]
[1759765024525,0.54332898,4679.4,4679.3,41.93551]
[1759765024926,0.32012898,4679.4,4679.3,41.93551]
[1759765025630,0.00212898,4679.4,4679.3,41.93551]
[1759765026030,0.32012898,4679.4,4679.3,41.93551]
[1759765027225,0.32012898,4679.4,4679.3,41.61771]
[1759765027431,0.32012898,4679.4,4679.3,41.18451]
[1759765027733,0.32012898,4679.4,4679.3,41.50231]
[1759765029431,0.00212898,4679.4,4679.3,41.50231]
[1759765031228,0.75332898,4679.4,4679.3,0.81771]
[1759765031430,0.75332898,4679.4,4679.3,0.59301]
[1759765031629,0.75332898,4679.4,4679.3,1.13551]
[1759765033428,0.75332898,4679.4,4679.3,0.81771]
[1759765033925,0.75332898,4679.4,4679.3,0.59301]
[1759765034319,1.21611469,4679.4,4679.3,0.59301]
[1759765035036,1.21611469,4679.4,4679.3,1.13551]
[1759765036539,0.00212898,4679.4,4679.3,1.13551]
[1759765038232,0.22532898,4679.4,4679.3,1.13551]
[1759765038535,0.55552898,4679.4,4679.3,1.13551]
[1759765038835,0.00212898,4679.4,4679.3,1.13551]
[1759765040235,0.54212898,4679.4,4679.3,1.13551]
[1759765040635,0.00212898,4679.4,4679.3,1.13551]
[1759765041230,1.005307,4679.4,4679.3,1.13551]
[1759765041430,1.03475104,4679.4,4679.3,1.13551]
[1759765042731,1.24505104,4679.4,4679.3,1.13551]
[1759765045040,1.03475104,4679.4,4679.3,1.13551]
[1759765045636,0.49475104,4679.4,4679.3,1.13551]
[1759765046543,1.03475104,4679.4,4679.3,1.13551]
[1759765046841,1.24505104,4679.4,4679.3,1.13551]
[1759765047633,1.24505104,4679.4,4679.3,0.38451]
[1759765047837,0.8831,4679.0,4678.9,0.38455]
[1759765048037,1.34627802,4679.0,4678.9,0.38455]
[1759765048441,1.37572206,4679.0,4678.9,0.38455]
[1759765049544,1.37572206,4679.0,4678.9,0.59875]
[1759765050543,1.37572206,4679.0,4678.9,0.38455]
[1759765051142,0.02944404,4679.0,4678.9,1.33365]
[1759765051342,0.00212898,4679.4,4679.3,1.11861]
[1759765051651,3.2078,4680.2,4680.1,1.11855]
[1759765052445,3.2078,4680.8,4680.7,0.8057]
[1759765052642,3.21033281,4680.8,4680.7,1.12006408]
[1759765052838,3.96063281,4680.8,4680.7,1.12006408]
[1759765053041,3.96063281,4680.8,4680.7,0.80726408]
[1759765053239,0.75283281,4680.8,4680.7,0.80726408]
[1759765053441,0.75283281,4680.8,4680.7,1.12006408]
[1759765055149,0.75283281,4680.8,4680.7,0.38596408]
[1759765055349,4.17563281,4680.8,4680.7,0.00156408]
[1759765055544,9.17563281,4680.8,4679.6,0.3128]
[1759765055752,0.8831,4679.5,4679.4,0.2142]
[1759765055951,0.8831,4679.5,4679.4,0.38451]
[1759765056645,0.8831,4679.5,4679.4,0.38603174]
[1759765057043,5.8831,4679.5,4679.4,0.00152174]
[1759765058051,0.3352,4678.4,4678.2,2.30762]
[1759765058245,0.5528,4678.3,4678.2,0.3846]
[1759765059056,0.3352,4678.3,4678.2,0.3865565]
[1759765059442,3.2078,4678.6,4678.4,0.38459]
[1759765059650,0.4679,4678.5,4678.4,0.38459]
[1759765060753,0.6855,4678.5,4678.4,0.38459]
[1759765061254,0.9107,4678.5,4678.4,0.38459]
[1759765062056,4.1185,4678.5,4678.4,0.38459]
[1759765062653,4.1185,4678.5,4678.3,0.3846]
[1759765062848,4.1185,4678.5,4678.2,0.0019565]
[1759765063151,0.47460942,4678.4,4678.3,0.38459]
[1759765063358,1.25260942,4678.4,4678.3,0.38459]
[1759765064647,1.27361148,4678.4,4678.3,0.38459]
[1759765064852,1.04841148,4678.4,4678.3,0.38459]
[1759765065146,1.27361148,4678.4,4678.3,0.38459]
[1759765065755,1.27361148,4678.4,4678.2,0.0019565]
[1759765065959,1.46760942,4678.3,4678.2,0.3865565]
[1759765066567,1.48861148,4678.3,4678.2,0.3865565]
[1759765067654,1.48861148,4678.3,4678.2,0.0019565]
[1759765067962,0.38462,4678.1,4677.9,0.38462]
[1759765068161,5.12500942,4678.0,4677.9,0.38462]
[1759765068361,1.0435,4677.8,4677.7,0.38464]
[1759765068764,1.06450206,4677.8,4677.7,0.38672182]
[1759765069359,0.1841,4676.5,4675.7,3.2078]
[1759765069559,0.1841,4676.5,4675.3,3.23773019]
[1759765069560,0.6035,4675.4,4675.3,2.10810117]
[1759765069756,1.2165,4675.4,4675.3,0.38484]
[1759765069960,1.23750206,4675.4,4675.3,0.61794]
[1759765070358,1.23940873,4675.4,4675.3,0.61946258]
[1759765071366,0.02290873,4675.4,4675.3,0.99826258]
[1759765071865,0.02290873,4675.4,4675.3,41.79826258]
[1759765072664,8.73e-06,4675.4,4675.3,46.79826258]
[1759765074071,3.3919,4676.5,4676.4,0.38475]
[1759765074258,3.3919,4676.5,4676.4,0.99665]
[1759765074464,3.8319,4676.5,4676.4,0.85095]
[1759765074765,4.4354,4676.5,4676.4,0.38475]
[1759765075063,4.1435331,4676.5,4676.4,0.85095]
[1759765075265,3.8334331,4676.5,4676.4,0.85095]
[1759765075464,3.2093331,4676.5,4676.4,0.99665]
[1759765076067,3.2093331,4676.5,4676.4,41.79665]
[1759765076265,3.6493331,4676.5,4676.4,42.01165]
[1759765076465,0.4415331,4676.5,4676.4,42.01165]
[1759765076666,0.0015331,4676.5,4676.4,42.01165]
[1759765078271,0.0015331,4676.5,4676.4,47.01165]
[1759765078470,0.0015331,4676.5,4676.4,47.1798828]
[1759765078667,0.4415331,4676.5,4676.4,46.79665]
[1759765078870,4.2104,4677.5,4677.4,0.67297]
[1759765079173,3.5179,4677.5,4677.4,1.37677]
[1759765079769,3.99735098,4677.5,4677.4,0.95537]
[1759765080668,3.99735098,4677.5,4677.4,0.38467]
[1759765080872,4.65235098,4677.5,4677.4,0.38467]
[1759765086073,0.38469,4677.2,4676.5,0.96187]
[1759765086276,1.0435,4676.7,4676.6,0.38474]
[1759765090275,1.0435,4676.7,4675.5,0.95553]
[1759765090276,0.7501,4675.6,4675.5,0.95553]
[1759765090681,0.44,4675.6,4675.5,1.37693]
[1759765090881,0.1841,4676.0,4675.9,0.38479]
[1759765091078,0.7876,4676.0,4675.9,0.95549]
[1759765091484,1.2276,4676.0,4675.9,0.95549]
[1759765092284,1.2276,4676.0,4675.9,0.38479]
[1759765092581,1.2276,4676.0,4675.8,0.3848]
[1759765092780,1.0435,4675.4,4675.3,0.95706258]
[1759765093085,0.9651,4675.7,4675.6,1.37692]
[1759765093288,1.2585,4675.7,4675.6,0.95552]
[1759765093584,4.4663,4675.7,4675.6,0.67312]
[1759765093978,4.4663,4675.7,4675.6,0.95552]
[1759765094178,4.94792426,4675.7,4675.6,1.37692]
[1759765094378,4.94792426,4675.7,4675.6,0.95552]
[1759765094583,4.94792426,4675.7,4675.6,0.67312]
[1759765094784,4.94792426,4675.7,4675.5,0.38482]
[1759765094984,1.52512426,4675.6,4675.5,0.38482]
[1759765095986,1.52512426,4675.6,4675.5,0.67312]
[1759765096778,1.23172426,4675.6,4675.5,0.95552]
[1759765096977,0.48162426,4675.6,4675.5,1.52362]
[1759765097183,4.2513,4676.2,4676.1,0.95548]
[1759765097383,4.9479124,4676.2,4676.1,0.95548]
[1759765098084,4.9479124,4676.2,4676.1,41.75548]
[1759765098389,4.1528124,4676.2,4676.1,41.75548]
[1759765099182,4.1528124,4676.2,4676.1,42.17548]
[1759765100586,3.6894124,4676.2,4676.1,42.17548]
[1759765101392,0.215,4676.6,4676.5,1.38764]
[1759765101586,0.48061188,4676.6,4676.5,1.38764]
[1759765101985,0.02471188,4676.6,4676.5,6.53434]
[1759765102290,3.2078,4677.8,4676.5,6.53434]
[1759765102291,0.00195098,4677.5,4677.4,1.0029]
[1759765102484,0.00195098,4677.5,4677.4,1.2179]
[1759765102692,0.00195098,4677.5,4677.4,42.0179]
[1759765103091,0.00195098,4677.5,4677.4,47.0179]
[1759765103498,4.4443,4678.8,4678.7,0.96746]
[1759765103699,4.2873,4678.8,4678.7,0.96746]
[1759765103991,4.2873,4678.8,4678.7,1.38746]
[1759765104489,4.28947959,4678.8,4678.7,1.38976612]
[1759765104796,3.20997959,4678.8,4678.7,1.38976612]
[1759765105197,3.98307959,4678.8,4678.7,1.38976612]
[1759765105398,3.98307959,4678.8,4678.7,42.18976612]
[1759765105585,3.20997959,4678.8,4678.7,42.40476612]
[1759765105789,0.00217959,4678.8,4678.7,42.40476612]
[1759765107699,0.46557959,4678.8,4678.7,42.40476612]
[1759765108590,0.46557959,4678.8,4678.7,42.18976612]
[1759765108798,0.46557959,4678.8,4678.7,42.40476612]
[1759765109496,0.46557959,4678.8,4678.7,42.18976612]
[1759765109700,0.00217959,4678.8,4678.7,42.40476612]
[1759765109995,3.2078,4679.4,4679.3,1.38741]
[1759765110195,3.6712,4679.4,4679.3,1.38741]
[1759765110386,3.6712,4679.4,4679.3,1.60241]
[1759765110387,3.2078,4679.4,4679.3,1.60241]
[1759765110588,4.2873,4679.4,4679.3,0.38451]
[1759765111099,4.28933512,4679.4,4679.3,0.38451]
[1759765111605,4.28933512,4679.4,4679.3,0.68231]
[1759765112712,4.28933512,4679.4,4679.3,0.38451]
[1759765116913,0.5852,4678.8,4678.7,40.80230612]
[1759765117205,0.5852,4678.8,4678.7,0.98166612]
[1759765117206,1.0472,4678.8,4678.7,0.98166612]
[1759765117406,0.2879,4679.0,4678.9,0.97935]
[1759765117708,0.7499,4679.0,4678.9,42.22695]
[1759765117906,0.9218,4679.0,4678.9,41.18455]
[1759765121504,6.2191,4679.0,4678.9,0.38455]
[1759765121710,1.0472,4678.8,4678.7,0.00230612]
[1759765122013,1.0472,4678.8,4677.4,0.4476]
[1759765122014,1.2191,4677.5,4677.4,0.38467]
[1759765122405,1.2191,4677.5,4676.6,1.40944]
[1759765122607,1.0472,4676.7,4676.6,0.97954]
[1759765122808,1.0472,4676.7,4676.6,1.42971877]
[1759765123213,0.7499,4676.7,4676.6,1.42971877]
[1759765123809,4.47,4676.7,4676.6,0.38731877]
[1759765124004,9.47,4676.7,4676.6,0.38731877]
[1759765124411,4.47,4676.7,4676.6,0.38731877]
[1759765130009,4.47,4676.7,4673.7,1.51446902]
[1759765130010,1.0093,4676.1,4675.4,0.96208]
[1759765130319,1.1807,4675.5,4675.4,0.68184]
[1759765130621,1.1807,4675.5,4675.4,41.77644]
[1759765131120,1.18273273,4675.5,4675.4,42.23227544]
[1759765131419,1.01133273,4675.5,4675.4,42.23227544]
[1759765132617,0.73023273,4675.5,4675.4,42.23227544]
[1759765132924,0.00203273,4675.5,4675.4,42.23227544]
[1759765133118,0.00203273,4675.5,4675.4,47.23227544]
[1759765134121,0.215,4676.3,4676.2,1.43027]
[1759765134316,3.4871,4676.4,4676.3,1.0455]
[1759765134619,4.2171,4676.4,4676.3,0.297]
[1759765134815,4.2171,4676.4,4676.3,0.5916]
[1759765135015,4.21885107,4676.4,4676.2,0.38477]
[1759765135214,4.43385107,4676.4,4676.2,0.38477]
[1759765136522,3.98495107,4676.4,4676.3,0.5916]
[1759765136723,3.98495107,4676.4,4676.2,0.38477]
[1759765136924,3.76995107,4676.4,4676.2,0.38477]
[1759765137125,1.2243,4676.3,4676.2,0.38477]
[1759765140524,0.38477,4676.2,4675.6,0.96206]
[1759765140729,0.38477,4676.2,4675.4,40.80193544]
[1759765140730,1.1807,4675.5,4675.4,0.38677544]
[1759765141027,1.3957,4675.5,4675.4,0.38677544]
[1759765143917,23.75641661,4788.7,4675.4,0.38677544]
[1759765143918,1.91934297,4678.3,4676.0,0.17]
[1759765144117,1.91934297,4679.7,4679.2,0.38452]
[1759765144317,0.68380972,4679.6,4679.5,0.4539]
[1759765144522,3.41253038,4679.6,4679.2,3.2078]
[1759765144717,0.46880972,4679.5,4679.3,0.38451]
[1759765144923,3.19959107,4679.5,4679.4,0.4539]
[1759765145327,0.47087041,4679.5,4679.4,0.4539]
[1759765145731,0.00206069,4679.5,4679.4,0.4539]
[1759765150130,0.00206069,4679.5,4679.4,1.0455]
[1759765156428,0.14336069,4679.5,4679.4,1.0455]
[1759765156827,0.58796069,4679.5,4679.4,0.4539]
[1759765157033,0.3709,4679.4,4679.3,0.84081771]
[1759765157232,0.2826,4679.4,4679.3,0.84081771]
[1759765158528,0.2826,4679.4,4679.3,1.13781771]
[1759765158734,0.00206069,4679.5,4679.4,1.0704]
[1759765161435,0.19176069,4679.5,4679.4,1.0704]
[1759765161641,0.50006069,4679.5,4679.4,0.4737]
[1759765161840,0.38146069,4679.5,4679.4,0.4737]
[1759765162243,0.38146069,4679.5,4679.4,0.7659]
[1759765162440,0.00206069,4679.5,4679.4,1.0704]
[1759765164740,0.38146069,4679.5,4679.4,1.0704]
[1759765166544,0.00206069,4679.5,4679.4,1.0704]
[1759765169841,0.19176069,4679.5,4679.4,1.0704]
[1759765170748,0.00206069,4679.5,4679.4,1.0704]
[1759765172945,0.03150599,4679.5,4679.4,1.0704]
[1759765173448,3.4228,4680.1,4680.0,1.63356]
[1759765173647,3.87946586,4680.1,4680.0,1.63356]
[1759765174240,0.45666586,4680.1,4680.0,1.63356]
[1759765174444,0.45878338,4680.1,4680.0,1.63356]
[1759765175844,0.45878338,4680.1,4680.0,42.43356]
[1759765176457,0.45878338,4680.1,4680.0,1.63356]
[1759765176656,1.12618338,4680.1,4680.0,0.9446]
[1759765176859,0.61067,4679.9,4679.7,0.38448]
[1759765177046,0.90906586,4679.8,4679.7,0.4496]
[1759765177250,0.6125,4679.6,4679.5,0.1787]
[1759765177447,4.49196586,4679.6,4679.5,0.1787]
[1759765178058,0.6125,4679.4,4679.3,0.38691771]
[1759765178358,1.06916586,4679.4,4679.3,0.30790771]
[1759765178546,1.06916586,4679.4,4679.3,0.61550771]
[1759765179257,0.45666586,4679.4,4679.3,1.06510771]
[1759765186661,1.06916586,4679.4,4679.3,1.06510771]
[1759765190370,1.06916586,4679.4,4678.8,0.38455]
[1759765190371,0.5862,4678.9,4678.8,0.38455]
[1759765190571,4.90766586,4678.9,4678.8,0.288]
[1759765190765,1.0282,4678.7,4678.6,0.5974]
[1759765190965,1.48486586,4678.7,4678.6,0.5974]
[1759765191275,1.48486586,4678.7,4678.4,0.67259]
[1759765191276,0.5862,4678.5,4678.4,0.67259]
[1759765191465,1.69986586,4678.5,4678.4,0.98437725]
[1759765191664,1.69986586,4678.5,4678.4,0.59978725]
[1759765191869,1.69986586,4678.5,4678.4,0.29038725]
[1759765192368,1.69986586,4678.5,4678.4,0.72468725]
[1759765193077,1.25786586,4678.5,4678.4,1.03408725]
[1759765193668,1.69986586,4678.5,4678.4,1.03408725]
[1759765196773,1.25786586,4678.5,4678.4,1.03408725]
[1759765196968,0.67166586,4678.5,4678.4,1.03408725]
[1759765197170,0.45666586,4678.5,4678.4,1.03408725]
[1759765197371,0.67166586,4678.5,4678.4,1.03408725]
[1759765198778,0.45666586,4678.5,4678.4,1.03408725]
[1759765199276,1.69986586,4678.5,4678.4,1.03408725]
[1759765200266,1.69986586,4678.5,4678.4,0.72468725]
[1759765202676,1.69986586,4678.5,4678.4,1.03408725]
[1759765204772,0.45666586,4678.5,4678.4,1.03408725]
[1759765204975,0.3059,4679.4,4679.3,1.41621]
[1759765205388,0.97384901,4679.4,4679.3,1.41621]
[1759765205585,1.25414901,4679.4,4679.3,1.41621]
[1759765206374,0.45294901,4679.4,4679.3,1.41621]
[1759765206583,0.3059,4679.8,4679.7,0.98188]
[1759765206778,1.69629917,4679.8,4679.7,0.98188]
[1759765206977,1.03929917,4679.8,4679.7,0.98188]
[1759765207278,0.2803,4679.5,4679.1,0.4343]
[1759765207482,1.0282,4679.2,4679.1,1.10683]
[1759765207689,1.48129917,4679.2,4679.1,1.10683]
[1759765208491,1.86581917,4679.2,4679.1,0.7223]
[1759765208985,1.48129917,4679.2,4679.1,1.10683]
[1759765209382,0.45309917,4679.2,4679.1,1.41623]
[1759765209786,0.45309917,4679.3,4679.2,0.4343]
[1759765209985,3.2078,4679.4,4679.3,1.41621]
[1759765210179,3.87832435,4679.4,4679.3,1.41621]
[1759765210574,4.18422435,4679.4,4679.3,1.41621]
[1759765210979,4.46452435,4679.4,4679.3,1.41621]
[1759765211179,4.90652435,4679.4,4679.3,1.41621]
[1759765211891,4.46452435,4679.4,4679.3,1.41621]
[1759765212786,4.90652435,4679.4,4679.3,1.41621]
[1759765213081,4.90652435,4679.4,4679.3,1.10681]
[1759765213284,0.5862,4678.9,4678.8,0.4343]
[1759765213483,1.0282,4678.7,4678.6,0.4343]
[1759765213685,1.0282,4678.5,4678.4,0.72468725]
[1759765213987,1.2432,4678.5,4678.4,1.10926725]
[1759765214190,1.69885099,4678.5,4678.4,1.10926725]
[1759765215889,1.69885099,4678.5,4678.4,1.41866725]
[1759765218493,1.67395099,4678.5,4678.4,1.41866725]
[1759765219392,1.67395099,4678.5,4678.4,0.72468725]
[1759765219592,1.67395099,4678.5,4678.4,0.27908725]
[1759765219992,1.67395099,4678.5,4678.4,0.73078725]
[1759765220191,1.23595099,4678.5,4678.4,1.03308725]
[1759765222504,1.67395099,4678.5,4678.4,0.73078725]
[1759765222693,6.78075099,4678.5,4678.4,0.00238725]
[1759765222894,6.78075099,4678.5,4677.3,0.4517]
[1759765222895,1.38794,4677.8,4677.3,0.4517]
[1759765223197,1.0033,4677.4,4677.3,1.41538]
[1759765223402,1.2183,4677.4,4677.3,1.41538]
[1759765223692,1.0033,4677.3,4677.2,0.38468]
[1759765223898,4.66690041,4677.3,4677.2,1.11505676]
[1759765224297,4.66690041,4677.3,4677.2,1.41735676]
[1759765225299,0.5653,4677.3,4677.2,1.41735676]
[1759765225599,1.02069532,4677.3,4677.2,1.41735676]
[1759765226297,0.5653,4677.3,4677.2,1.41735676]
[1759765226999,0.2774,4677.3,4677.2,1.41735676]
[1759765227398,0.5653,4677.3,4677.2,1.41735676]
[1759765227596,1.45845976,4677.3,4677.2,1.11505676]
[1759765227806,1.45845976,4677.3,4677.2,0.38665676]
[1759765228302,1.45845976,4677.3,4677.2,1.11505676]
[1759765229396,1.0033,4677.3,4677.2,1.11505676]
[1759765230400,1.0033,4677.3,4677.2,1.41735676]
[1759765232701,0.215,4677.4,4677.3,1.0307]
[1759765233007,3.4852,4677.5,4677.4,1.41537]
[1759765233200,4.1548731,4677.5,4677.4,1.41537]
[1759765233500,0.0294453,4677.5,4677.4,1.41537]
[1759765233705,0.2444453,4677.5,4677.4,1.41537]
[1759765234100,1.0033,4677.3,4677.2,0.00197676]
[1759765234304,1.48734005,4677.3,4677.2,0.00197676]
[1759765234500,4.22029625,4677.3,4677.2,0.00197676]
[1759765235304,4.22029625,4677.3,4677.2,0.73037676]
[1759765235600,4.22029625,4677.3,4677.2,0.00197676]
[1759765235902,4.43529625,4677.3,4677.2,0.00197676]
[1759765236307,4.43529625,4677.3,4677.2,0.72097676]
[1759765236506,1.26434005,4677.3,4677.2,1.02447676]
[1759765238798,1.04934005,4677.3,4677.2,1.02447676]
[1759765239102,1.70124005,4677.3,4677.2,1.02447676]
[1759765240002,1.70124005,4677.3,4677.2,1.40916676]
[1759765240506,1.70124005,4677.3,4677.2,1.10566676]
[1759765240803,0.97644005,4677.3,4677.2,1.40916676]
[1759765240994,0.69904005,4677.3,4677.2,1.40916676]
[1759765241395,1.70454005,4677.3,4677.2,1.10566676]
[1759765241599,0.5370453,4677.3,4677.2,1.40916676]
[1759765241794,0.2444453,4677.3,4677.2,1.40916676]
[1759765242402,0.69422895,4677.3,4677.2,1.40916676]
[1759765243208,0.98682895,4677.3,4677.2,1.40916676]
[1759765244005,1.69972895,4677.3,4677.2,1.40916676]
[1759765244206,1.69972895,4677.3,4677.2,1.10566676]
[1759765245198,2.08440895,4677.3,4677.2,0.00197676]
[1759765245599,2.08440895,4677.3,4677.2,0.43057676]
[1759765245802,2.08440895,4677.3,4677.2,0.72097676]
[1759765245994,2.08440895,4677.3,4677.2,0.00197676]
[1759765246198,4.89470108,4677.3,4677.2,0.00197676]
[1759765248006,4.51002108,4677.3,4677.2,0.74027676]
[1759765248306,4.06023743,4677.3,4677.2,0.00197676]
[1759765248507,4.51724954,4677.3,4677.2,0.00197676]
[1759765252207,4.30224954,4677.3,4677.2,1.13466676]
[1759765252411,4.51724954,4677.3,4677.2,1.42006676]
[1759765253314,4.51724954,4677.3,4677.2,1.13466676]
[1759765253510,4.51724954,4677.3,4677.2,0.00197676]
[1759765254706,4.51724954,4677.3,4677.2,0.74997676]
[1759765254911,4.51724954,4677.3,4677.2,1.13466676]
[1759765255612,1.70695741,4677.3,4677.2,1.42006676]
[1759765256409,1.27005741,4677.3,4677.2,1.42006676]
[1759765256614,1.69005741,4677.3,4677.2,1.42006676]
[1759765256801,1.27005741,4677.3,4677.2,1.42006676]
[1759765257504,0.48645741,4677.3,4677.2,1.42006676]
[1759765257708,0.70145741,4677.3,4677.2,1.42006676]
[1759765258113,1.67705741,4677.3,4677.2,1.42006676]
[1759765258615,0.97505741,4677.3,4677.2,1.42006676]
[1759765260116,0.70210334,4677.3,4677.2,1.42006676]
[1759765262113,0.97570334,4677.3,4677.2,1.42006676]
[1759765265115,0.48710334,4677.3,4677.2,4.62786676]
[1759765265425,4.1834,4678.0,4677.9,1.41803]
[1759765265621,4.3984,4678.0,4677.9,1.41803]
[1759765265821,3.6964,4678.0,4677.9,1.41803]
[1759765266816,4.3984,4678.0,4677.9,1.41803]
[1759765267022,4.3984,4678.0,4677.9,1.13263]
[1759765267216,3.9784,4678.0,4677.9,1.41803]
[1759765269828,4.3984,4678.0,4677.9,1.41803]
[1759765270422,3.9784,4678.0,4677.9,1.41803]
[1759765271725,4.3984,4678.0,4677.9,1.41803]
[1759765272423,3.9784,4678.0,4677.9,1.41803]
[1759765273321,3.4228,4678.0,4677.9,1.41803]
[1759765273523,3.6964,4678.0,4677.9,1.41803]
[1759765273915,4.3984,4678.0,4677.9,0.83253]
[1759765274126,4.3984,4678.0,4677.9,0.38463]
[1759765274420,4.3984,4678.0,4677.9,1.41803]
[1759765274628,3.6964,4678.0,4677.9,1.41803]
[1759765275221,0.4886,4678.0,4677.9,1.41803]
[1759765275428,0.9756,4678.0,4677.9,1.41803]
[1759765275622,1.1906,4678.0,4677.9,1.41803]
[1759765275927,1.1906,4678.0,4677.9,1.13263]
[1759765276128,1.3613,4678.0,4677.9,0.38463]
[1759765276322,0.2736,4677.3,4677.2,0.97216676]
[1759765276624,0.215,4677.3,4677.2,0.97216676]
[1759765277018,0.215,4677.3,4677.2,1.42006676]
[1759765277825,0.215,4677.3,4677.2,4.62786676]
[1759765279628,0.7789,4677.3,4677.2,1.42006676]
[1759765279926,0.7789,4677.3,4677.2,1.13466676]
[1759765279927,1.206,4677.3,4677.2,1.13466676]
[1759765280123,1.206,4677.3,4677.2,1.41426676]
[1759765280325,0.7789,4677.3,4677.2,1.41426676]
[1759765282617,0.2736,4677.3,4677.2,1.41426676]
[1759765282827,0.4886,4677.3,4677.2,1.41426676]
[1759765283328,1.206,4677.3,4677.2,0.38666676]
[1759765283533,4.4138,4677.3,4677.2,0.38666676]
[1759765283828,4.4138,4677.3,4677.2,0.00197676]
[1759765283829,4.86791812,4677.3,4677.2,0.00197676]
[1759765285535,4.86791812,4677.3,4677.2,0.67987676]
[1759765285729,4.86791812,4677.3,4677.2,1.06456676]
[1759765286423,1.66011812,4677.3,4677.2,1.06456676]
[1759765286630,2.04479812,4677.3,4677.2,1.06456676]
[1759765286935,4.86791812,4677.3,4677.2,1.06456676]
[1759765287331,3.08291812,4677.3,4677.2,1.06456676]
[1759765288434,3.46759812,4677.3,4677.2,0.79536676]
[1759765288633,3.08291812,4677.3,4677.2,1.06456676]
[1759765288932,3.08291812,4677.3,4677.2,1.34416676]
[1759765289129,0.215,4677.3,4677.2,1.34416676]
[1759765291635,0.215,4677.3,4677.2,4.55196676]
[1759765292027,3.2078,4677.8,4677.7,1.34215]
[1759765292229,3.4228,4677.8,4677.7,1.34215]
[1759765292621,0.215,4677.8,4677.7,1.34215]
[1759765293028,3.2078,4678.3,4678.2,1.0625]
[1759765293333,3.4228,4678.3,4678.2,1.3421]